[Event "Titled Tuesday Blitz January 18 2022"]
[White "Koelle, Tobias"]
[Black "Lauridsen, Jesper Morch"]
[WhiteFideId "16207378"]
[BlackFideId "1401890"]
[WhiteElo "2541"]
[BlackElo "2222"]
[Result "1-0"]
[Round "11"]
[TimeControl "180+1"]
[Date "2022.01.18"]
[WhiteClock "0:01:45"]
[BlackClock "0:00:01"]

1. d4 {[%clk 0:03:00]}  Nf6 {[%clk 0:02:59]} 2. c4 {[%clk 0:02:46]}  g6 {[%clk 0:02:57]} 3. Nc3 {[%clk 0:02:46]}  c5 {[%clk 0:02:54]} 4. d5 {[%clk 0:02:44]}  Bg7 {[%clk 0:02:54]} 5. e4 {[%clk 0:02:43]}  d6 {[%clk 0:02:54]} 6. Bd3 {[%clk 0:02:42]}  O-O {[%clk 0:02:54]} 7. Nf3 {[%clk 0:02:42]}  e6 {[%clk 0:02:54]} 8. O-O {[%clk 0:02:41]}  exd5 {[%clk 0:02:54]} 9. exd5 {[%clk 0:02:40]}  Bg4 {[%clk 0:02:50]} 10. Bf4 {[%clk 0:02:39]}  Nh5 {[%clk 0:02:30]} 11. Be3 {[%clk 0:02:39]}  Nd7 {[%clk 0:02:28]} 12. Be2 {[%clk 0:02:38]}  Bxc3 {[%clk 0:02:21]} 13. bxc3 {[%clk 0:02:37]}  Ng7 {[%clk 0:02:20]} 14. h3 {[%clk 0:02:34]}  Bxf3 {[%clk 0:02:20]} 15. Bxf3 {[%clk 0:02:35]}  Ne5 {[%clk 0:02:18]} 16. Be2 {[%clk 0:02:35]}  Nf5 {[%clk 0:02:03]} 17. Bd2 {[%clk 0:02:32]}  Qf6 {[%clk 0:01:58]} 18. Rb1 {[%clk 0:02:23]}  b6 {[%clk 0:01:56]} 19. a4 {[%clk 0:02:22]}  g5 {[%clk 0:01:45]} 20. a5 {[%clk 0:02:21]}  bxa5 {[%clk 0:01:38]} 21. Rb5 {[%clk 0:02:18]}  a6 {[%clk 0:01:33]} 22. Rxa5 {[%clk 0:02:17]}  Ng6 {[%clk 0:01:33]} 23. Bd3 {[%clk 0:02:15]}  Nfh4 {[%clk 0:01:25]} 24. Qh5 {[%clk 0:02:14]}  Qd8 {[%clk 0:00:34]} 25. Bxg5 {[%clk 0:02:09]}  Qxa5 {[%clk 0:00:32]} 26. Bf6 {[%clk 0:02:09]}  Ne5 {[%clk 0:00:10]} 27. Qxh4 {[%clk 0:01:50]}  Nxd3 {[%clk 0:00:06]} 28. Qh6 {[%clk 0:01:48]}  Qxc3 {[%clk 0:00:03]} 29. Bxc3 {[%clk 0:01:47]}  f6 {[%clk 0:00:01]} 30. Bxf6 {[%clk 0:01:45]} 1-0


[Site "https://www.chess.com"]

[Event "Titled Tuesday Blitz January 18 2022"]
[White "Kosakowski, Jakub"]
[Black "Cunha, Lucas Aguiar"]
[WhiteFideId "1185080"]
[BlackFideId "2125404"]
[WhiteElo "2476"]
[BlackElo "2361"]
[Result "1-0"]
[Round "11"]
[TimeControl "180+1"]
[Date "2022.01.18"]
[WhiteClock "0:00:34"]
[BlackClock "0:00:26"]

1. d4 {[%clk 0:03:00]}  Nf6 {[%clk 0:02:59]} 2. Nf3 {[%clk 0:03:00]}  c5 {[%clk 0:02:59]} 3. c3 {[%clk 0:02:54]}  b6 {[%clk 0:02:55]} 4. Bf4 {[%clk 0:02:53]}  Bb7 {[%clk 0:02:53]} 5. e3 {[%clk 0:02:54]}  g6 {[%clk 0:02:51]} 6. h3 {[%clk 0:02:53]}  Bg7 {[%clk 0:02:51]} 7. Be2 {[%clk 0:02:53]}  O-O {[%clk 0:02:52]} 8. O-O {[%clk 0:02:53]}  d6 {[%clk 0:02:52]} 9. Nbd2 {[%clk 0:02:54]}  a6 {[%clk 0:02:52]} 10. a4 {[%clk 0:02:53]}  Nbd7 {[%clk 0:02:51]} 11. Bh2 {[%clk 0:02:53]}  Rc8 {[%clk 0:02:51]} 12. Re1 {[%clk 0:02:51]}  Qc7 {[%clk 0:02:48]} 13. Bf1 {[%clk 0:02:46]}  Qb8 {[%clk 0:02:47]} 14. e4 {[%clk 0:02:34]}  e5 {[%clk 0:02:46]} 15. dxe5 {[%clk 0:02:29]}  Nxe5 {[%clk 0:02:44]} 16. Nxe5 {[%clk 0:02:29]}  dxe5 {[%clk 0:02:45]} 17. Nc4 {[%clk 0:02:30]}  Rcd8 {[%clk 0:02:39]} 18. Qc2 {[%clk 0:02:28]}  Nd7 {[%clk 0:02:37]} 19. Rad1 {[%clk 0:02:27]}  Qc7 {[%clk 0:02:32]} 20. Nd6 {[%clk 0:02:05]}  h5 {[%clk 0:02:12]} 21. Bc4 {[%clk 0:02:05]}  Nb8 {[%clk 0:02:09]} 22. Nxf7 {[%clk 0:01:42]}  Rxf7 {[%clk 0:02:05]} 23. Rxd8+ {[%clk 0:01:42]}  Qxd8 {[%clk 0:02:04]} 24. Qb3 {[%clk 0:01:43]}  Qc7 {[%clk 0:02:00]} 25. Bxf7+ {[%clk 0:01:41]}  Qxf7 {[%clk 0:02:01]} 26. Qxb6 {[%clk 0:01:42]}  c4 {[%clk 0:01:47]} 27. Qd8+ {[%clk 0:01:27]}  Qf8 {[%clk 0:01:44]} 28. Qc7 {[%clk 0:01:28]}  Qc8 {[%clk 0:01:37]} 29. Qd6 {[%clk 0:01:21]}  Nd7 {[%clk 0:01:30]} 30. Qxg6 {[%clk 0:01:19]}  Nf8 {[%clk 0:01:21]} 31. Qxh5 {[%clk 0:01:19]}  Qe6 {[%clk 0:01:18]} 32. Qe2 {[%clk 0:01:11]}  Bc6 {[%clk 0:01:17]} 33. a5 {[%clk 0:01:09]}  Nd7 {[%clk 0:01:17]} 34. Qe3 {[%clk 0:01:05]}  Bb5 {[%clk 0:01:14]} 35. Rd1 {[%clk 0:01:04]}  Kf7 {[%clk 0:01:12]} 36. Bg3 {[%clk 0:01:04]}  Bf6 {[%clk 0:01:11]} 37. Kh2 {[%clk 0:01:02]}  Kg6 {[%clk 0:01:11]} 38. Qa7 {[%clk 0:00:51]}  Qc6 {[%clk 0:01:05]} 39. f3 {[%clk 0:00:49]}  Nc5 {[%clk 0:01:02]} 40. Rd5 {[%clk 0:00:49]}  Nd3 {[%clk 0:01:02]} 41. Qb8 {[%clk 0:00:43]}  Kf7 {[%clk 0:00:47]} 42. Rd6 {[%clk 0:00:39]}  Qe8 {[%clk 0:00:32]} 43. Qb7+ {[%clk 0:00:36]}  Kg6 {[%clk 0:00:26]} 44. Bh4 {[%clk 0:00:34]} 1-0


[Site "https://www.chess.com"]

[Event "Titled Tuesday Blitz January 18 2022"]
[White "Kosteniuk, Alexandra"]
[Black "Musovic, Armin"]
[WhiteFideId "4128125"]
[BlackFideId "939935"]
[WhiteElo "2469"]
[BlackElo "2250"]
[Result "1/2-1/2"]
[Round "11"]
[TimeControl "180+1"]
[Date "2022.01.18"]
[WhiteClock "0:00:59"]
[BlackClock "0:00:21"]

1. f4 {[%clk 0:03:00]}  Nh6 {[%clk 0:02:52]} 2. Nf3 {[%clk 0:03:00]}  g6 {[%clk 0:02:51]} 3. e4 {[%clk 0:02:59]}  Bg7 {[%clk 0:02:49]} 4. Nc3 {[%clk 0:02:58]}  O-O {[%clk 0:02:48]} 5. d4 {[%clk 0:02:58]}  c6 {[%clk 0:02:47]} 6. Bc4 {[%clk 0:02:55]}  b5 {[%clk 0:02:44]} 7. Bb3 {[%clk 0:02:55]}  b4 {[%clk 0:02:45]} 8. Ne2 {[%clk 0:02:54]}  d5 {[%clk 0:02:45]} 9. e5 {[%clk 0:02:48]}  a5 {[%clk 0:02:43]} 10. c3 {[%clk 0:02:41]}  Na6 {[%clk 0:02:28]} 11. O-O {[%clk 0:02:38]}  c5 {[%clk 0:02:26]} 12. dxc5 {[%clk 0:02:33]}  e6 {[%clk 0:02:26]} 13. cxb4 {[%clk 0:02:31]}  axb4 {[%clk 0:02:22]} 14. Be3 {[%clk 0:02:30]}  Qa5 {[%clk 0:02:09]} 15. Rc1 {[%clk 0:02:29]}  Nf5 {[%clk 0:01:46]} 16. Bf2 {[%clk 0:02:28]}  Rd8 {[%clk 0:01:27]} 17. Ned4 {[%clk 0:02:18]}  Nxd4 {[%clk 0:01:15]} 18. Bxd4 {[%clk 0:02:15]}  Bf8 {[%clk 0:00:59]} 19. Qc2 {[%clk 0:02:15]}  Bd7 {[%clk 0:00:55]} 20. f5 {[%clk 0:01:48]}  Bb5 {[%clk 0:00:48]} 21. fxe6 {[%clk 0:01:46]}  fxe6 {[%clk 0:00:48]} 22. Rf2 {[%clk 0:01:39]}  Bh6 {[%clk 0:00:45]} 23. Re1 {[%clk 0:01:23]}  Rac8 {[%clk 0:00:44]} 24. h4 {[%clk 0:01:21]}  Be8 {[%clk 0:00:39]} 25. Ng5 {[%clk 0:01:17]}  Bxg5 {[%clk 0:00:33]} 26. hxg5 {[%clk 0:01:17]}  Nxc5 {[%clk 0:00:33]} 27. Bxc5 {[%clk 0:01:14]}  Rxc5 {[%clk 0:00:26]} 28. Qd2 {[%clk 0:01:13]}  Bb5 {[%clk 0:00:19]} 29. Qf4 {[%clk 0:01:11]}  Qa7 {[%clk 0:00:19]} 30. Qf6 {[%clk 0:01:05]}  Re8 {[%clk 0:00:19]} 31. Re3 {[%clk 0:01:02]}  Rc1+ {[%clk 0:00:19]} 32. Kh2 {[%clk 0:01:00]}  Qxe3 {[%clk 0:00:18]} 33. Qf7+ {[%clk 0:01:00]}  Kh8 {[%clk 0:00:19]} 34. Qf6+ {[%clk 0:01:01]}  Kg8 {[%clk 0:00:20]} 35. Qf7+ {[%clk 0:00:59]}  Kh8 {[%clk 0:00:20]} 36. Qf6+ {[%clk 0:00:59]}  Kg8 {[%clk 0:00:21]} 1/2-1/2


[Site "https://www.chess.com"]

[Event "Titled Tuesday Blitz January 18 2022"]
[White "Koziorowicz, Michal"]
[Black "Punin, Andrii"]
[WhiteFideId "21809194"]
[BlackFideId "14112639"]
[WhiteElo "2166"]
[BlackElo "2357"]
[Result "1-0"]
[Round "11"]
[TimeControl "180+1"]
[Date "2022.01.18"]
[WhiteClock "0:00:22"]
[BlackClock "0:00:04"]

1. a3 {[%clk 0:02:53]}  g6 {[%clk 0:02:58]} 2. g3 {[%clk 0:02:53]}  Bg7 {[%clk 0:02:58]} 3. Bg2 {[%clk 0:02:53]}  e5 {[%clk 0:02:55]} 4. c4 {[%clk 0:02:54]}  f5 {[%clk 0:02:54]} 5. Nc3 {[%clk 0:02:54]}  Nf6 {[%clk 0:02:53]} 6. e3 {[%clk 0:02:54]}  O-O {[%clk 0:02:52]} 7. Nge2 {[%clk 0:02:54]}  c6 {[%clk 0:02:52]} 8. O-O {[%clk 0:02:55]}  Kh8 {[%clk 0:02:50]} 9. d4 {[%clk 0:02:54]}  e4 {[%clk 0:02:49]} 10. b4 {[%clk 0:02:51]}  d5 {[%clk 0:02:48]} 11. c5 {[%clk 0:02:52]}  g5 {[%clk 0:02:41]} 12. f4 {[%clk 0:02:42]}  exf3 {[%clk 0:02:39]} 13. Bxf3 {[%clk 0:02:42]}  Ne4 {[%clk 0:02:32]} 14. Nxe4 {[%clk 0:02:36]}  fxe4 {[%clk 0:02:25]} 15. Bg2 {[%clk 0:02:36]}  Bg4 {[%clk 0:02:22]} 16. Rxf8+ {[%clk 0:02:24]}  Qxf8 {[%clk 0:02:23]} 17. Bd2 {[%clk 0:02:23]}  Nd7 {[%clk 0:02:22]} 18. Qf1 {[%clk 0:02:18]}  Qe8 {[%clk 0:02:10]} 19. h3 {[%clk 0:02:07]}  Be6 {[%clk 0:02:04]} 20. Kh2 {[%clk 0:02:05]}  Qh5 {[%clk 0:01:58]} 21. Ng1 {[%clk 0:01:58]}  Rf8 {[%clk 0:01:57]} 22. Qe2 {[%clk 0:01:53]}  Qh6 {[%clk 0:01:53]} 23. Rf1 {[%clk 0:01:52]}  Nf6 {[%clk 0:01:39]} 24. Be1 {[%clk 0:01:21]}  Rf7 {[%clk 0:01:31]} 25. a4 {[%clk 0:01:19]}  a6 {[%clk 0:01:30]} 26. b5 {[%clk 0:01:20]}  axb5 {[%clk 0:01:30]} 27. axb5 {[%clk 0:01:21]}  Bd7 {[%clk 0:01:13]} 28. b6 {[%clk 0:01:16]}  Kg8 {[%clk 0:01:11]} 29. Kh1 {[%clk 0:01:02]}  Bf8 {[%clk 0:01:08]} 30. Bd2 {[%clk 0:00:52]}  Qg6 {[%clk 0:01:02]} 31. Ra1 {[%clk 0:00:52]}  Nh5 {[%clk 0:01:00]} 32. Be1 {[%clk 0:00:51]}  g4 {[%clk 0:00:57]} 33. h4 {[%clk 0:00:50]}  Bh6 {[%clk 0:00:49]} 34. Ra8+ {[%clk 0:00:48]}  Rf8 {[%clk 0:00:48]} 35. Rxf8+ {[%clk 0:00:43]}  Bxf8 {[%clk 0:00:48]} 36. Kh2 {[%clk 0:00:42]}  Qf5 {[%clk 0:00:43]} 37. Qd2 {[%clk 0:00:41]}  Bh6 {[%clk 0:00:39]} 38. Qc1 {[%clk 0:00:40]}  Kf7 {[%clk 0:00:38]} 39. Ne2 {[%clk 0:00:39]}  Kg6 {[%clk 0:00:34]} 40. Qa3 {[%clk 0:00:39]}  Qf8 {[%clk 0:00:31]} 41. Kg1 {[%clk 0:00:37]}  Ng7 {[%clk 0:00:29]} 42. Qa7 {[%clk 0:00:36]}  Qc8 {[%clk 0:00:27]} 43. Bf2 {[%clk 0:00:36]}  Ne6 {[%clk 0:00:24]} 44. Nc3 {[%clk 0:00:35]}  Nd8 {[%clk 0:00:24]} 45. Nb1 {[%clk 0:00:34]}  Bg7 {[%clk 0:00:21]} 46. Na3 {[%clk 0:00:34]}  h5 {[%clk 0:00:20]} 47. Nc2 {[%clk 0:00:34]}  Bh6 {[%clk 0:00:20]} 48. Na1 {[%clk 0:00:34]}  Kf6 {[%clk 0:00:20]} 49. Nb3 {[%clk 0:00:34]}  Kg6 {[%clk 0:00:21]} 50. Qa2 {[%clk 0:00:34]}  Be6 {[%clk 0:00:20]} 51. Bf1 {[%clk 0:00:34]}  Kh7 {[%clk 0:00:20]} 52. Be2 {[%clk 0:00:34]}  Kg7 {[%clk 0:00:20]} 53. Bd1 {[%clk 0:00:34]}  Kh7 {[%clk 0:00:20]} 54. Bc2 {[%clk 0:00:35]}  Kg7 {[%clk 0:00:20]} 55. Qa7 {[%clk 0:00:33]}  Kg8 {[%clk 0:00:20]} 56. Na5 {[%clk 0:00:34]}  Bf8 {[%clk 0:00:19]} 57. Bd1 {[%clk 0:00:34]}  Bd7 {[%clk 0:00:19]} 58. Be2 {[%clk 0:00:34]}  Be6 {[%clk 0:00:19]} 59. Ba6 {[%clk 0:00:35]}  bxa6 {[%clk 0:00:18]} 60. b7 {[%clk 0:00:35]}  Nxb7 {[%clk 0:00:18]} 61. Nxb7 {[%clk 0:00:36]}  Qd7 {[%clk 0:00:17]} 62. Qxa6 {[%clk 0:00:35]}  Qe8 {[%clk 0:00:16]} 63. Na5 {[%clk 0:00:35]}  Bd7 {[%clk 0:00:15]} 64. Qb7 {[%clk 0:00:35]}  Qe6 {[%clk 0:00:15]} 65. Qb8 {[%clk 0:00:34]}  Kf7 {[%clk 0:00:15]} 66. Nb7 {[%clk 0:00:34]}  Be7 {[%clk 0:00:14]} 67. Qf4+ {[%clk 0:00:33]}  Qf5 {[%clk 0:00:13]} 68. Qc7 {[%clk 0:00:33]}  Ke8 {[%clk 0:00:12]} 69. Na5 {[%clk 0:00:32]}  Qf6 {[%clk 0:00:08]} 70. Qb8+ {[%clk 0:00:30]}  Bd8 {[%clk 0:00:08]} 71. Nb7 {[%clk 0:00:29]}  Qe7 {[%clk 0:00:08]} 72. Qf4 {[%clk 0:00:30]}  Qf6 {[%clk 0:00:07]} 73. Qb8 {[%clk 0:00:24]}  Qe7 {[%clk 0:00:04]} 74. Be1 {[%clk 0:00:24]}  Qf6 {[%clk 0:00:04]} 75. Ba5 {[%clk 0:00:23]}  Qf3 {[%clk 0:00:04]} 76. Qxd8+ {[%clk 0:00:22]}  Kf7 {[%clk 0:00:04]} 77. Qxd7+ {[%clk 0:00:22]}  Kg8 {[%clk 0:00:03]} 78. Qd8+ {[%clk 0:00:19]}  Kh7 {[%clk 0:00:02]} 79. Qc7+ {[%clk 0:00:20]}  Kg6 {[%clk 0:00:02]} 80. Qf4 {[%clk 0:00:20]}  Qd1+ {[%clk 0:00:02]} 81. Qf1 {[%clk 0:00:20]}  Qc2 {[%clk 0:00:02]} 82. Qf2 {[%clk 0:00:20]}  Qd1+ {[%clk 0:00:02]} 83. Be1 {[%clk 0:00:21]}  Qb3 {[%clk 0:00:02]} 84. Nd6 {[%clk 0:00:21]}  Qb1 {[%clk 0:00:03]} 85. Nf5 {[%clk 0:00:21]}  Kf6 {[%clk 0:00:03]} 86. Nd6+ {[%clk 0:00:21]}  Ke7 {[%clk 0:00:03]} 87. Qf7+ {[%clk 0:00:20]}  Kd8 {[%clk 0:00:04]} 88. Qe8+ {[%clk 0:00:21]}  Kc7 {[%clk 0:00:04]} 89. Qc8# {[%clk 0:00:22]} 1-0


[Site "https://www.chess.com"]

[Event "Titled Tuesday Blitz January 18 2022"]
[White "Le, Tuan Minh"]
[Black "Xiong, Jeffery"]
[WhiteFideId "12401153"]
[BlackFideId "2047640"]
[WhiteElo "2450"]
[BlackElo "2727"]
[Result "1/2-1/2"]
[Round "11"]
[TimeControl "180+1"]
[Date "2022.01.18"]
[WhiteClock "0:00:08"]
[BlackClock "0:00:24"]

1. d4 {[%clk 0:03:00]}  d5 {[%clk 0:02:59]} 2. Nf3 {[%clk 0:03:01]}  Nf6 {[%clk 0:02:58]} 3. Bf4 {[%clk 0:03:02]}  Bf5 {[%clk 0:02:59]} 4. c4 {[%clk 0:03:01]}  e6 {[%clk 0:02:57]} 5. Qb3 {[%clk 0:03:01]}  dxc4 {[%clk 0:02:47]} 6. Qxc4 {[%clk 0:02:59]}  Nd5 {[%clk 0:02:29]} 7. Bg5 {[%clk 0:02:48]}  Qd6 {[%clk 0:02:28]} 8. Nc3 {[%clk 0:02:30]}  Qb4 {[%clk 0:02:19]} 9. Qxb4 {[%clk 0:02:19]}  Bxb4 {[%clk 0:02:20]} 10. Bd2 {[%clk 0:02:19]}  Nxc3 {[%clk 0:02:14]} 11. Bxc3 {[%clk 0:02:18]}  a5 {[%clk 0:02:08]} 12. Rc1 {[%clk 0:02:17]}  O-O {[%clk 0:02:03]} 13. e3 {[%clk 0:02:15]}  Be7 {[%clk 0:01:44]} 14. Ne5 {[%clk 0:01:58]}  f6 {[%clk 0:01:37]} 15. Nd3 {[%clk 0:01:49]}  Nd7 {[%clk 0:01:37]} 16. Nf4 {[%clk 0:01:46]}  Bd6 {[%clk 0:01:35]} 17. Ne2 {[%clk 0:01:45]}  Nb6 {[%clk 0:01:27]} 18. Ng3 {[%clk 0:01:45]}  Bg6 {[%clk 0:01:27]} 19. a3 {[%clk 0:01:23]}  c6 {[%clk 0:01:20]} 20. Be2 {[%clk 0:01:16]}  Nd5 {[%clk 0:01:19]} 21. Bd2 {[%clk 0:01:13]}  f5 {[%clk 0:01:19]} 22. Bf3 {[%clk 0:01:11]}  f4 {[%clk 0:01:12]} 23. Ne4 {[%clk 0:01:05]}  fxe3 {[%clk 0:01:10]} 24. fxe3 {[%clk 0:01:05]}  Bxe4 {[%clk 0:01:08]} 25. Bxe4 {[%clk 0:01:05]}  e5 {[%clk 0:01:09]} 26. Bxd5+ {[%clk 0:00:37]}  cxd5 {[%clk 0:01:09]} 27. Bc3 {[%clk 0:00:37]}  e4 {[%clk 0:01:02]} 28. Ke2 {[%clk 0:00:37]}  Rf6 {[%clk 0:01:00]} 29. Rcf1 {[%clk 0:00:30]}  Kf7 {[%clk 0:00:48]} 30. a4 {[%clk 0:00:22]}  b6 {[%clk 0:00:43]} 31. Rxf6+ {[%clk 0:00:20]}  Kxf6 {[%clk 0:00:44]} 32. Rf1+ {[%clk 0:00:20]}  Ke6 {[%clk 0:00:44]} 33. h3 {[%clk 0:00:18]}  Rc8 {[%clk 0:00:44]} 34. Kd2 {[%clk 0:00:14]}  h5 {[%clk 0:00:39]} 35. Ke2 {[%clk 0:00:11]}  Rc4 {[%clk 0:00:38]} 36. Ra1 {[%clk 0:00:10]}  Rc8 {[%clk 0:00:35]} 37. Kd2 {[%clk 0:00:11]}  Rf8 {[%clk 0:00:35]} 38. Ke2 {[%clk 0:00:11]}  Rc8 {[%clk 0:00:27]} 39. Kd2 {[%clk 0:00:08]}  Rf8 {[%clk 0:00:24]} 40. Ke2 {[%clk 0:00:08]}  Rc8 {[%clk 0:00:24]} 1/2-1/2


[Site "https://www.chess.com"]

[Event "Titled Tuesday Blitz January 18 2022"]
[White "Lehtosaari, Mauri"]
[Black "Kim, Sergey"]
[WhiteFideId "501999"]
[BlackFideId "13700570"]
[WhiteElo "2489"]
[BlackElo "2584"]
[Result "0-1"]
[Round "11"]
[TimeControl "180+1"]
[Date "2022.01.18"]
[WhiteClock "0:00:04"]
[BlackClock "0:00:13"]

1. d4 {[%clk 0:03:00]}  Nf6 {[%clk 0:02:59]} 2. Nf3 {[%clk 0:03:00]}  g6 {[%clk 0:02:59]} 3. Bg5 {[%clk 0:02:58]}  Bg7 {[%clk 0:02:59]} 4. c3 {[%clk 0:02:58]}  d6 {[%clk 0:02:59]} 5. Nbd2 {[%clk 0:02:57]}  O-O {[%clk 0:02:58]} 6. e3 {[%clk 0:02:54]}  Nbd7 {[%clk 0:02:57]} 7. Bc4 {[%clk 0:02:54]}  b6 {[%clk 0:02:57]} 8. O-O {[%clk 0:02:51]}  Bb7 {[%clk 0:02:57]} 9. a4 {[%clk 0:02:51]}  a5 {[%clk 0:02:56]} 10. Qc2 {[%clk 0:02:51]}  e6 {[%clk 0:02:50]} 11. h3 {[%clk 0:02:48]}  h6 {[%clk 0:02:49]} 12. Bh4 {[%clk 0:02:45]}  Qe7 {[%clk 0:02:49]} 13. e4 {[%clk 0:02:36]}  g5 {[%clk 0:02:38]} 14. Bg3 {[%clk 0:02:36]}  Nh5 {[%clk 0:02:38]} 15. Bh2 {[%clk 0:02:27]}  Kh8 {[%clk 0:02:37]} 16. Rfe1 {[%clk 0:02:25]}  Rg8 {[%clk 0:02:19]} 17. Rad1 {[%clk 0:02:18]}  Rad8 {[%clk 0:02:10]} 18. Nf1 {[%clk 0:01:59]}  Nf8 {[%clk 0:02:07]} 19. Ne3 {[%clk 0:01:51]}  Ng6 {[%clk 0:02:02]} 20. Ba2 {[%clk 0:01:37]}  Nhf4 {[%clk 0:01:51]} 21. Bb1 {[%clk 0:01:23]}  Qf6 {[%clk 0:01:39]} 22. e5 {[%clk 0:01:19]}  Qe7 {[%clk 0:01:32]} 23. Bxf4 {[%clk 0:01:08]}  gxf4 {[%clk 0:01:32]} 24. Ng4 {[%clk 0:01:08]}  Bxf3 {[%clk 0:01:29]} 25. gxf3 {[%clk 0:01:08]}  Qh4 {[%clk 0:01:29]} 26. Kg2 {[%clk 0:00:55]}  Qg5 {[%clk 0:01:21]} 27. Rh1 {[%clk 0:00:46]}  Nh4+ {[%clk 0:01:03]} 28. Kf1 {[%clk 0:00:42]}  Nf5 {[%clk 0:01:03]} 29. exd6 {[%clk 0:00:38]}  cxd6 {[%clk 0:01:02]} 30. h4 {[%clk 0:00:31]}  Qh5 {[%clk 0:01:01]} 31. d5 {[%clk 0:00:28]}  Be5 {[%clk 0:00:53]} 32. dxe6 {[%clk 0:00:25]}  fxe6 {[%clk 0:00:53]} 33. Ba2 {[%clk 0:00:23]}  Qg6 {[%clk 0:00:49]} 34. Bb1 {[%clk 0:00:20]}  Qf7 {[%clk 0:00:46]} 35. Qe4 {[%clk 0:00:17]}  Qg7 {[%clk 0:00:40]} 36. h5 {[%clk 0:00:14]}  Rde8 {[%clk 0:00:34]} 37. Re1 {[%clk 0:00:11]}  Bf6 {[%clk 0:00:33]} 38. Rd1 {[%clk 0:00:11]}  Bg5 {[%clk 0:00:32]} 39. Qc6 {[%clk 0:00:10]}  d5 {[%clk 0:00:29]} 40. Qb5 {[%clk 0:00:08]}  Qc7 {[%clk 0:00:27]} 41. Qd3 {[%clk 0:00:08]}  Rgf8 {[%clk 0:00:25]} 42. Ne5 {[%clk 0:00:09]}  Qxe5 {[%clk 0:00:24]} 43. Re1 {[%clk 0:00:09]}  Qf6 {[%clk 0:00:24]} 44. Rg1 {[%clk 0:00:08]}  Qf7 {[%clk 0:00:24]} 45. Rh1 {[%clk 0:00:09]}  Qg7 {[%clk 0:00:23]} 46. Rd1 {[%clk 0:00:09]}  Rg8 {[%clk 0:00:23]} 47. Re1 {[%clk 0:00:09]}  Bf6 {[%clk 0:00:22]} 48. Ke2 {[%clk 0:00:09]}  Bg5 {[%clk 0:00:22]} 49. Kf1 {[%clk 0:00:09]}  d4 {[%clk 0:00:22]} 50. c4 {[%clk 0:00:09]}  Rc8 {[%clk 0:00:21]} 51. b3 {[%clk 0:00:10]}  Rce8 {[%clk 0:00:21]} 52. Qe4 {[%clk 0:00:09]}  Qf7 {[%clk 0:00:20]} 53. Qd3 {[%clk 0:00:10]}  Rg7 {[%clk 0:00:20]} 54. Rg1 {[%clk 0:00:09]}  e5 {[%clk 0:00:20]} 55. Rh1 {[%clk 0:00:10]}  Nd6 {[%clk 0:00:20]} 56. Rd1 {[%clk 0:00:09]}  Qf6 {[%clk 0:00:20]} 57. Rg1 {[%clk 0:00:08]}  e4 {[%clk 0:00:20]} 58. fxe4 {[%clk 0:00:08]}  Qe5 {[%clk 0:00:20]} 59. f3 {[%clk 0:00:07]}  Bf6 {[%clk 0:00:19]} 60. Qe2 {[%clk 0:00:07]}  Rxg1+ {[%clk 0:00:19]} 61. Kxg1 {[%clk 0:00:08]}  Rg8+ {[%clk 0:00:18]} 62. Kf1 {[%clk 0:00:08]}  Rg3 {[%clk 0:00:18]} 63. Ke1 {[%clk 0:00:08]}  Qg5 {[%clk 0:00:18]} 64. Kd2 {[%clk 0:00:08]}  Rg2 {[%clk 0:00:17]} 65. Re1 {[%clk 0:00:09]}  Rxe2+ {[%clk 0:00:17]} 66. Rxe2 {[%clk 0:00:10]}  Qg1 {[%clk 0:00:17]} 67. Bd3 {[%clk 0:00:09]}  Be5 {[%clk 0:00:17]} 68. Re1 {[%clk 0:00:09]}  Qf2+ {[%clk 0:00:16]} 69. Re2 {[%clk 0:00:10]}  Qg1 {[%clk 0:00:17]} 70. Re1 {[%clk 0:00:10]}  Qg3 {[%clk 0:00:17]} 71. Re2 {[%clk 0:00:10]}  Nf7 {[%clk 0:00:16]} 72. c5 {[%clk 0:00:09]}  bxc5 {[%clk 0:00:15]} 73. Bc4 {[%clk 0:00:10]}  Ng5 {[%clk 0:00:15]} 74. Kc2 {[%clk 0:00:10]}  Nxf3 {[%clk 0:00:15]} 75. Kb2 {[%clk 0:00:10]}  Ne1 {[%clk 0:00:14]} 76. Ka3 {[%clk 0:00:09]}  f3 {[%clk 0:00:14]} 77. Rd2 {[%clk 0:00:07]}  f2 {[%clk 0:00:14]} 78. Rd1 {[%clk 0:00:07]}  Qe3 {[%clk 0:00:14]} 79. Bf1 {[%clk 0:00:06]}  Qxe4 {[%clk 0:00:14]} 80. Rc1 {[%clk 0:00:05]}  Qe3 {[%clk 0:00:14]} 81. Rxc5 {[%clk 0:00:05]}  Bd6 {[%clk 0:00:13]} 82. Ka2 {[%clk 0:00:04]}  Bxc5 {[%clk 0:00:13]} 0-1


[Site "https://www.chess.com"]

[Event "Titled Tuesday Blitz January 18 2022"]
[White "Leitao, Rafael"]
[Black "Krzywda, Andrzej"]
[WhiteFideId "2101246"]
[BlackFideId "1114565"]
[WhiteElo "2609"]
[BlackElo "2098"]
[Result "1-0"]
[Round "11"]
[TimeControl "180+1"]
[Date "2022.01.18"]
[WhiteClock "0:01:24"]
[BlackClock "0:00:29"]

1. d4 {[%clk 0:03:00]}  c5 {[%clk 0:03:00]} 2. d5 {[%clk 0:02:59]}  Nf6 {[%clk 0:03:00]} 3. c4 {[%clk 0:02:59]}  b5 {[%clk 0:03:00]} 4. cxb5 {[%clk 0:02:57]}  a6 {[%clk 0:03:00]} 5. b6 {[%clk 0:02:54]}  e6 {[%clk 0:02:57]} 6. Nc3 {[%clk 0:02:51]}  Nxd5 {[%clk 0:02:57]} 7. Nxd5 {[%clk 0:02:51]}  exd5 {[%clk 0:02:58]} 8. Qxd5 {[%clk 0:02:51]}  Nc6 {[%clk 0:02:58]} 9. Nf3 {[%clk 0:02:45]}  Rb8 {[%clk 0:02:58]} 10. e4 {[%clk 0:02:43]}  Be7 {[%clk 0:02:58]} 11. Bc4 {[%clk 0:02:42]}  O-O {[%clk 0:02:58]} 12. O-O {[%clk 0:02:42]}  Rxb6 {[%clk 0:02:57]} 13. Qh5 {[%clk 0:02:35]}  Na5 {[%clk 0:02:41]} 14. Ng5 {[%clk 0:02:18]}  Bxg5 {[%clk 0:02:37]} 15. Bxg5 {[%clk 0:02:18]}  Qe8 {[%clk 0:02:33]} 16. Bd5 {[%clk 0:02:17]}  Rxb2 {[%clk 0:02:17]} 17. Rae1 {[%clk 0:02:03]}  Qe5 {[%clk 0:02:05]} 18. Qh4 {[%clk 0:01:54]}  d6 {[%clk 0:01:47]} 19. Bf4 {[%clk 0:01:51]}  Qd4 {[%clk 0:01:14]} 20. Bxd6 {[%clk 0:01:48]}  Re8 {[%clk 0:01:09]} 21. Rd1 {[%clk 0:01:36]}  Rd2 {[%clk 0:01:02]} 22. Qf4 {[%clk 0:01:28]}  Be6 {[%clk 0:00:29]} 23. Rxd2 {[%clk 0:01:24]} 1-0


[Site "https://www.chess.com"]